Cogmind - Beta 11 X5 @@@ ROGUE MODE // 2021.07.08 @ 19:54:42 Player: AlmondRoll Result: Destroyed by G-67 Veteran with Plasma Rifle Performance ------------- Evolutions (6) 3000 Regions Visited (20) 4000 Robots Destroyed (279) 1395 Value Destroyed (9693) 9693 Prototype IDs (71) 1420 Alien Tech Used (0) 0 Bonus (2570) 2570 TOTAL SCORE: 22078 Bonus ------- High Alert Combat Kills 882 Follower Combat Kills 157 Aligned with FarCom 300 Met Imprinter 300 Met Warlord at Base 500 MAIN.C Attacked Warlord 500 Friendly Fire -69 Cogmind --------- Core Integrity 0/1150 Matter 286/300 Energy 99/100 System Corruption 27% Temperature Cool (45) Movement Core (50) Location -4/Upper Caves Parts ------- > --- POWER (1) -------- (None) > --- PROPULSION (5) --- (None) > --- UTILITY (9) ------ (None) > --- WEAPON (4) ------- (None) > --- INVENTORY (5) ---- Myomer Leg Myomer Leg Long-range Sensor Array Vortex Driver (23) GAL Module Peak State ------------ > --- POWER ------------ Reinforced Fission Core > --- PROPULSION ------- Flexi-carbon Leg Flexi-carbon Leg Myomer Leg Enhanced Biometal Leg Enhanced Biometal Leg > --- UTILITY ---------- Experimental Thermal Converter Advanced Heat Sink Advanced Heat Sink Advanced Cooling System Large Storage Unit Improved Weapon Cycler Improved Medium Armor Plating EM Disruption Field Improved System Shield > --- WEAPON ----------- Neutron Cannon Neutron Cannon Heavy Autocannon > --- INVENTORY -------- Fission Core Vortex Chain Reactor Potential Leg Advanced Coolant Injector Advanced Sensor Array Improved Energy Mantle Vortex Rail Vortex Rail Matter Neutralizer Matter Neutralizer Vortex Driver Vortex Driver Hardcell Cannon GAL Module [Rating: 129] Favorites ----------- Power Reinforced Fission Core Engine F-cell Engine Power Core Reinforced Fission Core Propulsion Carbon-fiber Leg Treads Light Treads Leg Carbon-fiber Leg Wheel Compact Wheel Utility Large Storage Unit Device Advanced Cooling System Storage Large Storage Unit Processor Makeshift Salvage Targeting Computer Hackware Hacking Suite Protection Improved Medium Armor Plating Weapon Light Cannon Energy Gun Force Rifle Energy Cannon Neutron Cannon Ballistic Gun Improved Assault Rifle Ballistic Cannon Light Cannon Launcher Rocket Array Special Weapon Molecular Deconstructor Impact Weapon Powered Hammer Build | -11 -10 -10 -9 -9 -9 -8 -8 -7 -7 -6 -5 -5 -5 -5 -5 -4 -4 -4 -4 -4 ------- Run | Scr Mat Min Mat Min Exi Min Mat Fac Low Zio Pro Fac Upp Upp War Pro Fac Was Fac Upp Slots Evolved 12 | . . . 2 . . . 2 2 . . . 4 . . . . 2 . . . Power . | . . . . . . . . . . . . . . . . . . . . . Propulsion 3 | . . . 1 . . . 1 1 . . . . . . . . . . . . Utility 7 | . . . 1 . . . 1 1 . . . 3 . . . . 1 . . . Weapon 2 | . . . . . . . . . . . . 1 . . . . 1 . . . Parts Attached 405 | 3 14 . 39 7 4 8 33 40 4 5 19 75 20 15 25 8 21 2 47 16 Power 28 | . 3 . 3 1 . 2 4 . 1 . 3 7 2 . 1 . . . . 1 Engine 10 | . 3 . 1 1 . . . . . . . 3 2 . . . . . . . Core 18 | . . . 2 . . 2 4 . 1 . 3 4 . . 1 . . . . 1 Reactor . | . . . . . . . . . . . . . . . . . . . . . Propulsion 108 | 2 6 . 13 2 3 3 12 6 . 5 5 15 3 2 8 3 5 1 9 5 Treads 13 | . 2 . 7 2 1 . . . . . . . . . . . . . . 1 Leg 83 | . . . . . 2 3 12 6 . 5 5 15 3 2 8 3 5 1 9 4 Wheel 12 | 2 4 . 6 . . . . . . . . . . . . . . . . . Hover . | . . . . . . . . . . . . . . . . . . . . . Flight . | . . . . . . . . . . . . . . . . . . . . . Utility 159 | . 2 . 7 3 1 1 13 20 1 . 5 34 9 5 9 1 12 1 29 6 Device 94 | . . . 1 2 . 1 5 11 1 . 3 23 4 4 3 1 8 1 23 3 Storage 6 | . 1 . 1 . . . . 1 . . . 1 1 1 . . . . . . Processor 10 | . . . . . 1 . 2 1 . . . 1 . . 1 . . . 3 1 Hackware 10 | . . . . . . . 2 2 . . . 2 1 . 3 . . . . . Protection 39 | . 1 . 5 1 . . 4 5 . . 2 7 3 . 2 . 4 . 3 2 Artifact . | . . . . . . . . . . . . . . . . . . . . . Weapon 110 | 1 3 . 16 1 . 2 4 14 2 . 6 19 6 8 7 4 4 . 9 4 Energy Gun 14 | . 1 . . . . . 1 . . . . 9 1 . 2 . . . . . Energy Cannon 25 | . . . 1 . . 1 . 1 . . 1 3 2 2 3 1 3 . 6 1 Ballistic Gun 20 | 1 1 . . . . 1 1 6 1 . 2 6 . . . . . . 1 . Ballistic Cannon 24 | . 1 . 9 1 . . 2 4 . . . . . . 1 1 1 . 2 2 Launcher 18 | . . . 5 . . . . 3 1 . 3 1 1 3 . 1 . . . . Special Weapon 4 | . . . . . . . . . . . . . 1 1 1 1 . . . . Impact Weapon 5 | . . . 1 . . . . . . . . . 1 2 . . . . . 1 Slashing Weapon . | . . . . . . . . . . . . . . . . . . . . . Piercing Weapon . | . . . . . . . . . . . . . . . . . . . . . Special Melee Weapon . | . . . . . . . . . . . . . . . . . . . . . Unidentified Prototypes 24 | . 1 . . . . . 1 2 . . . 5 1 . 8 . 2 1 3 . Corrupted Parts 2 | . . . 1 . . . . . . . 1 . . . . . . . . . System Corruption 5 | . . . 1 . . . . . . . 4 . . . . . . . . . Parts Lost 80 | . 4 . 9 2 . 1 1 2 1 . 10 17 6 1 . . 2 3 2 19 Power 9 | . 1 . 1 1 . . . . 1 . 2 1 1 . . . . . . 1 Propulsion 24 | . 1 . 4 . . . . . . . 4 7 . . . . . 1 . 7 Utility 34 | . . . 3 1 . 1 1 2 . . 3 7 4 1 . . 2 1 2 6 Weapon 13 | . 2 . 1 . . . . . . . 1 2 1 . . . . 1 . 5 Highest Loss Streak 11 | . 2 . 3 2 . 1 1 2 1 . 6 10 11 1 . . 2 3 1 11 Average Slot Usage (%) 87 | . 87 100 95 95 93 99 94 96 87 92 87 97 44 60 63 87 88 84 92 81 Engine 2 | . 12 14 5 3 11 3 . . . . . 4 3 5 4 . . . . . Core 4 | . . . 5 7 . 7 9 7 4 7 6 . . . . 5 5 5 5 4 Treads 3 | . 4 . 15 22 16 3 . . . . . . . . . . . . . . Leg 22 | . . . . . 10 29 35 37 38 38 36 27 11 16 22 29 25 24 25 22 Wheel 3 | . 23 28 15 11 5 . . . . . . . . . . . . . . . Device 9 | . . . . . . 2 5 8 5 7 7 14 7 17 6 15 20 21 24 17 Storage 7 | . 14 14 11 11 11 11 9 7 7 7 7 5 3 5 5 5 5 5 5 4 Processor 2 | . . . . . 5 11 8 6 . . . 5 . . 1 1 . . 6 10 Hackware 3 | . . . . . . . 1 7 7 7 5 9 . . 4 11 5 5 1 . Protection 7 | . 4 14 19 17 11 8 7 3 7 7 6 8 6 2 3 5 10 8 3 5 Energy Gun 1 | . 10 14 1 . . . . . . . . 7 1 . . . . . . . Energy Cannon 2 | . . . . 1 . 6 1 . . . . . 2 2 4 5 9 8 9 3 Ballistic Gun 5 | . 9 . . . . 6 8 11 14 15 12 8 . . . . . . . 2 Ballistic Cannon 6 | . 7 14 19 20 22 9 8 3 . . . . . . . 4 5 5 8 6 Naked Turns 103 | . . . . . . . . . . . . . 92 . . . . . . 11 Heaviest Build 129 | 12 37 36 40 38 32 37 47 61 66 66 70 77 67 48 109 110 129 114 110 103 Greatest Support 135 | 26 40 32 66 12 60 75 65 75 60 85 91 105 84 69 130 135 125 125 135 125 Greatest Overweight (x) 10 | . 1 1 3 3 2 1 . 1 1 1 . 1 . 10 . . 1 1 1 . Average Overweight (x) . | . . 1 1 2 1 . . . . . . . . . . . . . . . Largest Inventory Capacity 15 | 8 15 15 15 15 15 15 15 15 15 15 15 15 15 15 15 15 15 15 15 15 Average Capacity 14 | 8 10 15 15 15 15 15 15 15 15 15 15 15 11 15 15 15 15 15 15 14 Most Carried 15 | 6 15 15 15 15 15 15 15 15 15 15 15 15 15 15 15 15 15 15 15 15 Average Carried 13 | 3 9 15 14 14 14 14 14 14 13 14 14 14 9 14 14 14 14 14 14 11 Final Capacity 15 | 8 15 15 15 15 15 15 15 15 15 15 15 15 15 15 15 15 15 15 15 5 Final Carried 15 | 4 15 15 15 15 15 14 15 13 14 15 13 15 15 14 15 15 15 14 15 5 Class Distribution -------------------- 42% | Mutant 25% | Scavenger-Mutant 15% | Scavenger-Tank Dominant Class ---------------- Mutant | -10/Materials Mutant | -10/Mines Mutant | -9/Materials Mutant | -9/Mines Mutant | -9/Exiles Scavenger-Mutant | -8/Mines Scavenger-Mutant | -8/Materials Scavenger-Mutant | -7/Factory Scavenger-Mutant | -7/Lower Caves Mutant | -6/Zion Mutant | -5/Proximity Caves Scavenger-Tank | -5/Factory Mutant | -5/Upper Caves Gunner | -5/Upper Caves Commander-Tank | -5/Warlord Scavenger-Tank | -4/Proximity Caves Scavenger-Tank | -4/Factory Scavenger-Tank | -4/Waste Scavenger-Mutant | -4/Factory Mutant | -4/Upper Caves Resources | -11 -10 -10 -9 -9 -9 -8 -8 -7 -7 -6 -5 -5 -5 -5 -5 -4 -4 -4 -4 -4 ----------- Run | Scr Mat Min Mat Min Exi Min Mat Fac Low Zio Pro Fac Upp Upp War Pro Fac Was Fac Upp Matter Collected 10448 | 189 477 . 1247 258 64 427 849 650 200 50 268 1796 305 428 432 206 1074 . 1174 354 Remotely 195 | . . . . . . . 195 . . . . . . . . . . . . . Salvage Created 11027 | 92 843 . 1585 151 . 325 922 764 239 . 286 1991 399 230 . 280 1246 . 1400 274 Parts 527 | 3 43 . 123 6 . 11 49 33 12 . 9 100 10 22 . 13 30 . 56 7 Haulers Intercepted 19 | . 2 . 4 . . . 4 3 . . . 4 . . . . 1 . 1 . Recyclers Shooed 19 | 2 5 . 3 . . 1 2 2 . . . 2 . . . . . . 2 . Parts Field Recycled 38 | . . . . . . . . 38 . . . . . . . . . . . . Retrieved Matter 391 | . . . . . . . . 391 . . . . . . . . . . . . Parts Self-Destructed 118 | . . . . . . . . . 9 . 5 . 5 16 66 9 . . . 8 Prevented 11 | . . . . . . . . . . . 1 . . . 10 . . . . . Kills | -11 -10 -10 -9 -9 -9 -8 -8 -7 -7 -6 -5 -5 -5 -5 -5 -4 -4 -4 -4 -4 ------- Run | Scr Mat Min Mat Min Exi Min Mat Fac Low Zio Pro Fac Upp Upp War Pro Fac Was Fac Upp Combat Hostiles Destroyed 191 | . 12 . 42 4 . 3 13 15 7 . 9 19 7 15 . 7 13 . 19 6 Guns 53 | . 12 . . . . . 7 8 4 . 2 19 . . . . . . . 1 Cannons 88 | . . . 29 4 . 3 6 3 . . . . 2 . . 4 13 . 19 5 AOE 49 | . . . 13 . . . . 4 3 . 7 . 4 15 . 3 . . . . Classes Destroyed 19 | 2 6 . 3 1 . . 1 2 . . . . 2 . . . 1 . . 1 Worker 15 | . 1 . 4 1 . . 1 1 . . . 1 . . . . . . 6 . Builder 6 | . . . 1 . . . 1 1 . . . . . . . . 1 . 2 . Tunneler 6 | 1 2 . 1 1 . . . . . . . 1 . . . . . . . . Hauler 19 | . 2 . 4 . . . 4 3 . . . 4 . . . . 1 . 1 . Recycler 23 | 1 4 . 3 . . 2 3 2 . . . 1 . . . . 4 . 3 . Minesweeper 1 | . . . . . . . . . . . . . 1 . . . . . . . Mechanic 2 | . . . 1 . . . 1 . . . . . . . . . . . . . Operator 10 | . 1 . 6 . . . 1 . . . . 2 . . . . . . . . Watcher 6 | . 1 . 4 . . . . 1 . . . . . . . . . . . . Swarmer 48 | . 3 . 14 . . . . 6 3 . 2 1 4 15 . . . . . . Grunt 75 | . 9 . 19 2 . 2 8 7 4 . 3 6 1 . . 4 4 . 6 . Brawler 5 | . . . . 1 . 1 . . . . 1 . . . . . . . . 2 Duelist 6 | . . . . . . . . 1 . . 2 . . . . . . . 1 2 Sentry 27 | . . . 9 . . . 3 . . . 1 4 . . . . 1 . 8 1 Hunter 8 | . . . . . . . 2 . . . . 2 . . . 2 2 . . . Programmer 19 | . . . . . . . . 1 . . . 6 2 . . 1 5 . 4 . Behemoth 1 | . . . . . . . . . . . . . . . . . 1 . . . Samaritan 2 | . . . . . . . . . . . . . 2 . . . . . . . Master Thief 1 | . . . . . . . . . . . . . . . . . . . . 1 Best Kill Streak 10 | 2 5 . 7 3 . 3 5 6 4 . 6 3 4 10 . 4 4 . 6 5 Combat Bots Only 10 | . 3 . 6 3 . 3 3 5 4 . 6 3 4 10 . 4 4 . 4 5 Max Kills in Single Turn 6 | 1 2 . 4 2 . 1 1 3 2 . 2 2 4 6 . 2 2 . 2 1 Gunslinging 1 | . 1 . . . . . . . . . . . . . . . . . . . Exploded 6 | . . . 3 . . . . 2 2 . 2 . 4 6 . 2 . . . . Melee . | . . . . . . . . . . . . . . . . . . . . . Uniques/NPCs Destroyed 1 | . . . . 1 . . . . . . . . . . . . . . . . YI-UF0 (-9/Mines) Combat | -11 -10 -10 -9 -9 -9 -8 -8 -7 -7 -6 -5 -5 -5 -5 -5 -4 -4 -4 -4 -4 -------- Run | Scr Mat Min Mat Min Exi Min Mat Fac Low Zio Pro Fac Upp Upp War Pro Fac Was Fac Upp Damage Taken 18768 | . 708 . 1630 414 . 121 1025 974 315 45 1705 2917 1231 292 . 320 1622 104 2187 3158 Core 2688 | . 157 . 121 54 . 16 169 35 . 45 37 508 346 27 . 6 158 34 207 768 Absorbed by Shields 1109 | . . . . . . . . 126 24 . 132 540 . . . 287 . . . . Core Remaining (%) 58 | 100 . 37 . . . 52 69 . . . 83 . . . . 11 . . . . Volleys Fired 725 | 8 95 1 108 14 . 11 77 51 17 . 18 98 24 4 4 17 50 7 88 33 Largest 4 | 2 2 2 2 2 . 2 2 2 2 . 2 3 2 1 1 2 3 3 4 4 Hottest 325 | 70 85 85 85 95 . 83 99 87 51 . 60 238 173 50 . 188 285 270 325 275 Shots Fired 1491 | 16 181 2 209 28 . 22 154 100 32 . 26 260 32 4 4 29 109 15 188 80 Gun 669 | 16 161 1 10 . . 8 76 67 30 . 16 242 10 . . . . . 9 23 Cannon 789 | . 20 1 190 28 . 14 78 31 . . 1 18 21 . . 27 109 15 179 57 Launcher 29 | . . . 9 . . . . 2 2 . 9 . 1 4 . 2 . . . . Special 4 | . . . . . . . . . . . . . . . 4 . . . . . Kinetic 980 | 8 111 1 190 17 . 14 153 98 30 . 16 124 . . . 12 40 7 89 70 Thermal 473 | 8 70 1 10 11 . 8 1 . . . . 136 31 . . 15 69 8 99 6 Explosive 29 | . . . 9 . . . . 2 2 . 9 . 1 4 . 2 . . . . Electromagnetic 1 | . . . . . . . . . . . 1 . . . . . . . . . Entropic 4 | . . . . . . . . . . . . . . . . . . . . 4 Robot Hit Streak 25 | 6 8 1 12 12 . 13 11 10 10 . 16 25 10 1 . 3 7 5 17 13 Robot Miss Streak 12 | 1 5 1 6 1 . 2 3 3 2 . 5 4 5 12 . 5 5 1 4 4 Penetration Max 2 | . . . . . . . . . . . . 1 . . . . . . 2 . Secondary Targets 7 | . 2 . . . . . . . . . . 5 . . . . . . . . Max Gunslinging Chain 1 | . 1 . . . . . . . . . . 1 . . . . . . . . Shots Hit Robots 934 | 11 105 1 124 23 . 13 103 66 24 . 22 172 25 2 . 14 56 12 115 46 Core Hits 515 | 3 43 . 76 8 . 6 44 41 13 . 59 66 12 29 . 25 22 . 54 14 Critical Kills 3 | . . . . . . . . . . . 1 2 . . . . . . . . Critical Parts Destroyed 3 | . . . . . . . . 1 . . . 2 . . . . . . . . Critical Strikes 36 | . 5 . 9 . . . 5 2 . . 1 6 . . . . 2 . 3 3 Burn 7 | . 5 . . . . . . . . . . 2 . . . . . . . . Destroy 6 | . . . . . . . . 1 . . 1 4 . . . . . . . . Blast 21 | . . . 9 . . . 5 1 . . . . . . . . 2 . 3 1 Sunder 2 | . . . . . . . . . . . . . . . . . . . . 2 Melee Attacks 6 | . . . 3 . . . . . . . . . 3 . . . . . . . Impact 6 | . . . 3 . . . . . . . . . 3 . . . . . . . Slashing . | . . . . . . . . . . . . . . . . . . . . . Piercing . | . . . . . . . . . . . . . . . . . . . . . Sneak Attacks 4 | . . . 2 . . . . . . . . . 2 . . . . . . . Combat Hostiles . | . . . . . . . . . . . . . . . . . . . . . Follow-up Attacks . | . . . . . . . . . . . . . . . . . . . . . Damage Inflicted 30660 | 145 1366 13 3099 457 . 255 1920 1698 624 24 1907 4527 1080 1224 . 1449 3440 697 4829 1906 Guns 8334 | 145 1140 13 12 . . 111 743 764 435 . 178 4068 143 . . . . . 244 338 Cannons 16426 | . 226 . 2083 457 . 144 1171 601 . . . 275 657 . . 748 3440 697 4470 1457 Explosions 5228 | . . . 836 . . . . 297 189 . 1729 . 154 1224 . 701 . . 98 . Melee 264 | . . . 160 . . . . . . . . . 104 . . . . . . . Ramming 408 | . . . 8 . . . 6 36 . 24 . 184 22 . . . . . 17 111 Kinetic 16843 | 70 826 . 2083 275 . 162 1891 1365 435 . 178 2140 . . . 620 2309 393 2769 1327 Thermal 7669 | 75 540 13 12 182 . 93 23 . . . . 2203 800 . . 128 1131 304 2043 122 Explosive 4992 | . . . 836 . . . . 297 189 . 1591 . 154 1224 . 701 . . . . Electromagnetic 138 | . . . . . . . . . . . 138 . . . . . . . . . Impact 264 | . . . 160 . . . . . . . . . 104 . . . . . . . Slashing . | . . . . . . . . . . . . . . . . . . . . . Piercing . | . . . . . . . . . . . . . . . . . . . . . Entropic 346 | . . . . . . . . . . . . . . . . . . . . 346 Highest Corruption 27 | . . . 5 5 5 5 . 2 2 2 24 8 16 16 7 1 4 8 11 27 Average Corruption 6 | . . . 1 5 5 5 . 1 2 1 11 3 11 9 7 1 3 7 9 19 Corruption Purged 13 | . . . . . . . . . . . . 4 . 9 . . . . . . Effects 185 | . . . 6 17 6 9 . 1 4 1 7 16 23 13 1 1 5 3 53 19 Message Errors 48 | . . . 2 4 3 1 . 1 3 . 1 4 11 3 . . 2 . 10 3 Matter Fused 41 | . . . 1 4 2 1 . . . . 2 5 4 4 . . . 1 13 4 Heat Flow Errors 16 | . . . 1 1 . 1 . . . . . 4 1 1 . . . . 5 2 Energy Discharges 23 | . . . 1 2 1 4 . . 1 . . 2 4 2 . . 1 . 4 1 Parts Rejected 3 | . . . . 1 . . . . . . . . . 1 . . 1 . . . Data Loss (minor) 29 | . . . . 4 . 2 . . . 1 1 1 1 1 1 1 1 2 10 3 Data Loss (major) 6 | . . . . 1 . . . . . . . . . 1 . . . . 3 1 Misfires 5 | . . . . . . . . . . . 1 . . . . . . . 2 2 Alerts 1 | . . . . . . . . . . . . . . . . . . . 1 . Misdirections 3 | . . . . . . . . . . . 1 . . . . . . . . 2 Weapon Failures 10 | . . . 1 . . . . . . . 1 . 2 . . . . . 5 1 Overload Shots . | . . . . . . . . . . . . . . . . . . . . . Overflow Damage 976 | . . . 133 . . . . 19 . . 55 24 126 19 . 79 301 . 110 110 Projectiles 696 | . . . 8 . . . . 19 . . . . 69 . . 79 301 . 110 110 Explosions 74 | . . . . . . . . . . . 55 . . 19 . . . . . . Melee 206 | . . . 125 . . . . . . . . 24 57 . . . . . . . Knockbacks 78 | . . . 18 3 . 1 7 10 . . . 3 . . . 2 9 . 14 11 Impact 7 | . . . 1 . . . . . . . . 3 . . . . . . . 3 Kinetic 66 | . . . 16 3 . 1 7 8 . . . . . . . 2 9 . 12 8 Secondary 5 | . . . 1 . . . . 2 . . . . . . . . . . 2 . Self-Inflicted Damage 938 | . . . 192 . . . . . 32 24 273 . . 111 . 32 . . 274 . Shots 27 | . . . 6 . . . . . 1 . 10 . . 5 . 1 . . 4 . Rammed 2 | . . . 1 . . . . . . . . . 1 . . . . . . . Targets Rammed 37 | . . . 1 . . 2 1 3 . . . 13 5 . . . . . 3 9 Kicked 35 | . . . . . . 2 1 3 . . . 13 4 . . . . . 3 9 Crushed . | . . . . . . . . . . . . . . . . . . . . . Highest Temperature 474 | 63 289 36 314 220 . 229 175 262 16 . 10 344 92 176 . 60 474 78 305 223 Average Temperature 79 | 34 98 19 57 118 . 75 60 128 5 . 4 81 21 89 . 27 116 49 85 75 Received Heat Transfer 3690 | . 447 . 510 90 . 90 522 222 140 . 104 431 36 . . 18 193 . 336 551 Effects 8 | . . . 1 . . . . 1 . . . 1 . . . . 4 . 1 . Shutdowns 1 | . . . . . . . . . . . . . . . . . 1 . . . Energy Bleed 3 | . . . . . . . . 1 . . . 1 . . . . . . 1 . Interference 3 | . . . . . . . . . . . . . . . . . 3 . . . Matter Decay 1 | . . . 1 . . . . . . . . . . . . . . . . . Siege Activations . | . . . . . . . . . . . . . . . . . . . . . Robots Corrupted . | . . . . . . . . . . . . . . . . . . . . . Combat Hostiles . | . . . . . . . . . . . . . . . . . . . . . Parts Fried 4 | . . . 1 . . . . . . . . . 3 . . . . . . . Impact Corruptions 10 | . . . 4 . . . . . . . . 1 5 . . . . . . . Robots Melted 1 | . . . . . . . . . . . . . 1 . . . . . . . Combat Hostiles 1 | . . . . . . . . . . . . . 1 . . . . . . . Parts Melted 35 | . 2 . . . . . . . . . . 27 5 . . 1 . . . . Heat Transferred 10242 | 222 1961 37 37 296 . 148 37 . . . . 3762 892 . . 200 687 200 1688 75 Parts Sabotaged 3 | . . . . . . . . . . . . 3 . . . . . . . . Parts Stolen 11 | . . . . . . . . . . . . . 4 4 . . . . . 3 Parts Stripped . | . . . . . . . . . . . . . . . . . . . . . Power Chain Reactions . | . . . . . . . . . . . . . . . . . . . . . Missiles Intercepted . | . . . . . . . . . . . . . . . . . . . . . Latent Energy Used 81 | . . . . . . . . . . . 81 . . . . . . . . . LE Corruption 2 | . . . . . . . . . . . 2 . . . . . . . . . Alert | -11 -10 -10 -9 -9 -9 -8 -8 -7 -7 -6 -5 -5 -5 -5 -5 -4 -4 -4 -4 -4 ------- Run | Scr Mat Min Mat Min Exi Min Mat Fac Low Zio Pro Fac Upp Upp War Pro Fac Was Fac Upp Peak Influence 904 | 10 288 43 806 395 . 91 283 847 . . . 719 . . . . 349 73 904 . Initial 310 | . 6 43 16 310 . . 35 77 . . . 18 . . . . 81 69 16 . Average 259 | 5 145 43 425 289 . 43 137 314 . . . 143 . . . . 151 53 488 . Maximum Alert Level 3 | . 1 . 3 1 . . 1 3 . . . 3 . . . . 1 . 3 . Low Security (%) 58 | 100 75 100 21 47 . 100 93 59 . . . 72 . . . . 70 100 21 . Level 1 20 | . 24 . 26 52 . . 6 11 . . . 26 . . . . 29 . 8 . Level 2 12 | . . . 26 . . . . 2 . . . . . . . . . . 54 . Level 3 9 | . . . 24 . . . . 26 . . . . . . . . . . 15 . Level 4 . | . . . . . . . . . . . . . . . . . . . . . Level 5 . | . . . . . . . . . . . . . . . . . . . . . High Security . | . . . . . . . . . . . . . . . . . . . . . Max Security . | . . . . . . . . . . . . . . . . . . . . . Squads Dispatched 35 | . 3 . 7 . . . 3 4 . . 1 9 . . . . 4 . 4 . Investigation 3 | . 2 . . . . . 1 . . . . . . . . . . . . . Extermination 9 | . . . . . . . . 1 . . . 3 . . . . 3 . 2 . Reinforcement 18 | . 1 . 6 . . . 2 2 . . . 6 . . . . 1 . . . Assault 5 | . . . 1 . . . . 1 . . 1 . . . . . . . 2 . Garrison . | . . . . . . . . . . . . . . . . . . . . . Intercept . | . . . . . . . . . . . . . . . . . . . . . Construction Impeded 1 | . . . . . . . . . . . . 1 . . . . . . . . Haulers Reinforced 4 | . . . . . . . . 1 . . . 2 . . . . 1 . . . Cargo Convoy Interrupts 2 | . . . . . . . . 1 . . . 1 . . . . . . . . Stealth | -11 -10 -10 -9 -9 -9 -8 -8 -7 -7 -6 -5 -5 -5 -5 -5 -4 -4 -4 -4 -4 --------- Run | Scr Mat Min Mat Min Exi Min Mat Fac Low Zio Pro Fac Upp Upp War Pro Fac Was Fac Upp Distress Signals 16 | . 5 . 3 . . . 2 3 . . . . . . . . 1 . 2 . Communications Jammed . | . . . . . . . . . . . . . . . . . . . . . Distress Signals . | . . . . . . . . . . . . . . . . . . . . . Times Spotted 348 | . 27 . 61 4 . 3 24 23 7 . 15 51 33 16 5 11 16 6 29 17 Peak Tracking Total 19 | . 7 . 5 3 . 3 4 5 4 . 7 19 7 5 6 4 4 6 8 7 Tactical Retreats 20 | . 2 . 3 . . . 1 2 . . . 1 6 . . . 1 . 3 1 Traps | -11 -10 -10 -9 -9 -9 -8 -8 -7 -7 -6 -5 -5 -5 -5 -5 -4 -4 -4 -4 -4 ------- Run | Scr Mat Min Mat Min Exi Min Mat Fac Low Zio Pro Fac Upp Upp War Pro Fac Was Fac Upp Traps Triggered 9 | . 2 . 2 . . . 1 . . . . 1 . . . . 2 . 1 . Indirectly . | . . . . . . . . . . . . . . . . . . . . . Trap Hack Attempts . | . . . . . . . . . . . . . . . . . . . . . Triggered . | . . . . . . . . . . . . . . . . . . . . . Disarmed . | . . . . . . . . . . . . . . . . . . . . . Reprogrammed . | . . . . . . . . . . . . . . . . . . . . . Reused . | . . . . . . . . . . . . . . . . . . . . . Traps Extracted . | . . . . . . . . . . . . . . . . . . . . . Installed . | . . . . . . . . . . . . . . . . . . . . . Triggered 12 | . . . . . . . . 1 . . . . . 1 10 . . . . . Machines | -11 -10 -10 -9 -9 -9 -8 -8 -7 -7 -6 -5 -5 -5 -5 -5 -4 -4 -4 -4 -4 ---------- Run | Scr Mat Min Mat Min Exi Min Mat Fac Low Zio Pro Fac Upp Upp War Pro Fac Was Fac Upp Machines Disabled 27 | . . . 3 1 . . 1 1 . . . 2 1 . . . 4 . 13 1 Max in Single Turn 6 | . . . 1 1 . . 1 1 . . . 1 1 . . . 1 . 6 1 Garrison Access 2 | . . . . . . . . 1 . . . . . . . . . . 1 . Machines Sabotaged . | . . . . . . . . . . . . . . . . . . . . . Garrisons Compromised 1 | . . . . . . . . 1 . . . . . . . . . . . . Overloaded Fab Kills . | . . . . . . . . . . . . . . . . . . . . . Fab Network Shutdowns . | . . . . . . . . . . . . . . . . . . . . . Hacking | -11 -10 -10 -9 -9 -9 -8 -8 -7 -7 -6 -5 -5 -5 -5 -5 -4 -4 -4 -4 -4 --------- Run | Scr Mat Min Mat Min Exi Min Mat Fac Low Zio Pro Fac Upp Upp War Pro Fac Was Fac Upp Machines Accessed 47 | . 6 . 6 . 1 . 2 9 . 1 . 5 . . 11 . 1 . 5 . Terminals 23 | . 6 . 5 . . . 1 2 . . . 5 . . . . 1 . 3 . Fabricators 2 | . . . . . . . . 1 . . . . . . . . . . 1 . Repair Stations 5 | . . . 1 . . . 1 2 . . . . . . . . . . 1 . Recycling Units . | . . . . . . . . . . . . . . . . . . . . . Scanalyzers 2 | . . . . . . . . 2 . . . . . . . . . . . . Garrison Access 2 | . . . . . . . . 2 . . . . . . . . . . . . Total Hacks 121 | . 15 . 19 . 1 . 9 19 . 3 . 24 . . 21 . 1 . 9 . Successful 68 | . 8 . 8 . 1 . 4 11 . 3 . 7 . . 21 . . . 5 . Failed 53 | . 7 . 11 . . . 5 8 . . . 17 . . . . 1 . 4 . Catastrophic 5 | . 1 . 2 . . . 1 . . . . . . . . . 1 . . . Database Lockouts . | . . . . . . . . . . . . . . . . . . . . . Manual 47 | . 10 . 8 . 1 . 3 2 . . . 20 1 . . . . . 2 . Terminals 66 | . 15 . 14 . . . 4 4 . . . 24 . . . . 1 . 4 . Fabricators 4 | . . . . . . . . 2 . . . . . . . . . . 2 . Repair Stations 18 | . . . 5 . . . 5 5 . . . . . . . . . . 3 . Recycling Units . | . . . . . . . . . . . . . . . . . . . . . Scanalyzers 5 | . . . . . . . . 5 . . . . . . . . . . . . Garrison Access 3 | . . . . . . . . 3 . . . . . . . . . . . . Terminal Hacks 42 | . 8 . 4 . 1 . 1 1 . 3 . 2 . . 21 . . . 1 . Record 10 | . . . . . . . . . . . . . . . 10 . . . . . Part Schematic 4 | . . . . . . . . . . 3 . 1 . . . . . . . . Prototype ID Bank 17 | . 5 . 1 . . . 1 . . . . . . . 10 . . . . . Open Door 2 | . . . . . . . . . . . . . . . 1 . . . 1 . Branch Access Points 3 | . 1 . 1 . . . . . . . . 1 . . . . . . . . Terminal Index 1 | . . . . . . . . 1 . . . . . . . . . . . . Alert Level 1 | . . . 1 . . . . . . . . . . . . . . . . . Unreport Threat 1 | . . . 1 . . . . . . . . . . . . . . . . . Transport Status 1 | . 1 . . . . . . . . . . . . . . . . . . . Hauler Manifests 1 | . 1 . . . . . . . . . . . . . . . . . . . EX-Prototype ID Bank 1 | . . . . . 1 . . . . . . . . . . . . . . . Fabricator Hacks 3 | . . . . . . . . 1 . . . . . . . . . . 2 . Load Schematic 1 | . . . . . . . . . . . . . . . . . . . 1 . Build 2 | . . . . . . . . 1 . . . . . . . . . . 1 . Repair Station Hacks 12 | . . . 4 . . . 2 4 . . . . . . . . . . 2 . Scan Component 6 | . . . 2 . . . 1 2 . . . . . . . . . . 1 . Repair 6 | . . . 2 . . . 1 2 . . . . . . . . . . 1 . Recycling Unit Hacks . | . . . . . . . . . . . . . . . . . . . . . Scanalyzer 4 | . . . . . . . . 4 . . . . . . . . . . . . Insert Component 2 | . . . . . . . . 2 . . . . . . . . . . . . Analyze 2 | . . . . . . . . 2 . . . . . . . . . . . . Garrison Access Hacks 1 | . . . . . . . . 1 . . . . . . . . . . . . Seal Access 1 | . . . . . . . . 1 . . . . . . . . . . . . Unauthorized Hacks 6 | . . . . . . . 1 . . . . 5 . . . . . . . . Terminals 6 | . . . . . . . 1 . . . . 5 . . . . . . . . Track 1 | . . . . . . . . . . . . 1 . . . . . . . . Botnet 4 | . . . . . . . 1 . . . . 3 . . . . . . . . Operators 1 | . . . . . . . . . . . . 1 . . . . . . . . Fabricators . | . . . . . . . . . . . . . . . . . . . . . Repair Stations . | . . . . . . . . . . . . . . . . . . . . . Recycling Units . | . . . . . . . . . . . . . . . . . . . . . Scanalyzers . | . . . . . . . . . . . . . . . . . . . . . Garrison Access . | . . . . . . . . . . . . . . . . . . . . . Data Cores Recovered . | . . . . . . . . . . . . . . . . . . . . . Used . | . . . . . . . . . . . . . . . . . . . . . Hacking Detections 29 | . 5 . 6 . . . 1 8 . . . 5 . . . . 1 . 3 . Full Trace Events 1 | . . . 1 . . . . . . . . . . . . . . . . . Feedback Events . | . . . . . . . . . . . . . . . . . . . . . Feedback Blocked . | . . . . . . . . . . . . . . . . . . . . . Robot Schematics Acquired . | . . . . . . . . . . . . . . . . . . . . . Robots Built . | . . . . . . . . . . . . . . . . . . . . . Matter . | . . . . . . . . . . . . . . . . . . . . . Time . | . . . . . . . . . . . . . . . . . . . . . Total Robot Build Rating . | . . . . . . . . . . . . . . . . . . . . . Part Schematics Acquired 6 | . . . . . . . . 2 . 3 . 1 . . . . . . . . Parts Built 4 | . . . . . . . . 2 . . . . . . . . . . 2 . Matter 468 | . . . . . . . . 234 . . . . . . . . . . 234 . Time 175 | . . . . . . . . 58 . . . . . . . . . . 117 . Total Part Build Rating 28 | . . . . . . . . 14 . . . . . . . . . . 14 . Parts Repaired 6 | . . . 2 . . . 1 2 . . . . . . . . . . 1 . Time 196 | . . . 52 . . . 38 50 . . . . . . . . . . 56 . Parts Recycled . | . . . . . . . . . . . . . . . . . . . . . Recycled Matter . | . . . . . . . . . . . . . . . . . . . . . Retrieved Matter . | . . . . . . . . . . . . . . . . . . . . . Retrieved Components . | . . . . . . . . . . . . . . . . . . . . . Parts Scanalyzed 2 | . . . . . . . . 2 . . . . . . . . . . . . Part Schematics Acquired 2 | . . . . . . . . 2 . . . . . . . . . . . . Parts Damaged . | . . . . . . . . . . . . . . . . . . . . . Bothacking | -11 -10 -10 -9 -9 -9 -8 -8 -7 -7 -6 -5 -5 -5 -5 -5 -4 -4 -4 -4 -4 ------------ Run | Scr Mat Min Mat Min Exi Min Mat Fac Low Zio Pro Fac Upp Upp War Pro Fac Was Fac Upp Used RIF Installer . | . . . . . . . . . . . . . . . . . . . . . Robots Hacked . | . . . . . . . . . . . . . . . . . . . . . Non-combat . | . . . . . . . . . . . . . . . . . . . . . Combat . | . . . . . . . . . . . . . . . . . . . . . Robot Hacks Applied . | . . . . . . . . . . . . . . . . . . . . . Relay Couplers Released 2 | . . . . . . . . . . . . . . . . . . . 2 . Machine Destruction 2 | . . . . . . . . . . . . . . . . . . . 2 . Robots Rewired 7 | . . . . . . . . . . . . . . . 5 . . . . 2 Allies Hacked 1 | . . . . . . . . . . . . . . . 1 . . . . . Hacks Repelled . | . . . . . . . . . . . . . . . . . . . . . Allies | -11 -10 -10 -9 -9 -9 -8 -8 -7 -7 -6 -5 -5 -5 -5 -5 -4 -4 -4 -4 -4 -------- Run | Scr Mat Min Mat Min Exi Min Mat Fac Low Zio Pro Fac Upp Upp War Pro Fac Was Fac Upp Total Allies 29 | . . . . 3 . . . 18 . . . . . . 5 . . 1 . 2 Largest Group 17 | . . . . 3 3 3 . 17 . . . . . . 5 3 1 1 . 2 Highest-Rated Group 716 | . . . . 40 40 40 . 716 . . . . . . 266 171 65 46 . 77 Highest-Rated Ally 74 | . . . . 16 16 16 . 74 . . . . . . 65 65 65 46 . 47 Total Orders 2 | . . . . . . . . . . . 2 . . . . . . . . . EXPLORE 2 | . . . . . . . . . . . 2 . . . . . . . . . Ally Attacks 67 | . . . . . . 22 . 28 . . . . . . 3 3 . 7 . 4 Total Damage 1579 | . . . . . . 269 . 842 . . . . . . 136 61 . 151 . 120 Kills 12 | . . . . . . 3 . 8 . . . . . . . . . . . 1 Allies Corrupted . | . . . . . . . . . . . . . . . . . . . . . Allies Melted 2 | . . . . . . . . . . . . . . . 2 . . . . . Intel | -11 -10 -10 -9 -9 -9 -8 -8 -7 -7 -6 -5 -5 -5 -5 -5 -4 -4 -4 -4 -4 ------- Run | Scr Mat Min Mat Min Exi Min Mat Fac Low Zio Pro Fac Upp Upp War Pro Fac Was Fac Upp Robot Analysis Total . | . . . . . . . . . . . . . . . . . . . . . Derelict Logs Recovered 5 | . . . . . . . . . . 2 2 . . . . 1 . . . . Drone Launches 2 | . . . . . . . . . . . 2 . . . . . . . . . Drone Recoveries . | . . . . . . . . . . . . . . . . . . . . . Exploration | -11 -10 -10 -9 -9 -9 -8 -8 -7 -7 -6 -5 -5 -5 -5 -5 -4 -4 -4 -4 -4 ------------- Run | Scr Mat Min Mat Min Exi Min Mat Fac Low Zio Pro Fac Upp Upp War Pro Fac Was Fac Upp Turns Passed 16276 | 47 1049 79 1497 759 278 364 960 1255 332 1839 522 1922 741 508 1050 312 821 85 1470 386 Spaces Moved 10228 | 15 665 67 812 427 237 185 423 738 142 1221 356 1234 759 338 974 227 396 60 770 182 Core 266 | . . . . . . . . . . . . . 255 1 . . . . . 10 Treads 111 | . 46 . 65 . . . . . . . . . . . . . . . . . Legs 7857 | . . . . . 118 185 423 738 142 1221 356 1234 504 337 974 227 396 60 770 172 Wheels 1994 | 15 619 67 747 427 119 . . . . . . . . . . . . . . . Hover . | . . . . . . . . . . . . . . . . . . . . . Flight . | . . . . . . . . . . . . . . . . . . . . . Fastest Speed 45 | 90 90 115 93 120 90 90 112 120 120 124 45 45 45 90 90 88 112 86 107 50 Average Speed 116 | 90 107 115 121 128 105 124 119 120 160 149 108 111 75 91 94 110 164 104 119 116 Slowest Speed 550 | 90 160 115 260 135 180 200 120 200 200 200 135 200 100 550 106 112 192 190 189 120 Overloaded Moves 163 | . . . . . . . . . . . 98 20 16 . . 5 . 24 . . Propulsion Burnouts . | . . . . . . . . . . . . . . . . . . . . . Robots Hopped . | . . . . . . . . . . . . . . . . . . . . . Cave-ins Triggered 1 | . . . . . . . . . . . 1 . . . . . . . . . Exploration Rate (%) 46 | 3 75 28 72 88 61 27 45 13 19 85 61 22 64 60 93 41 9 65 19 22 Regions Visited 20 Branch Regions 12 Pre-discovered Areas . | . . . . . . . . . . . . . . . . . . . . . Known Exits Taken 8 | . 1 . 1 . . . 1 1 . . 1 1 . . . 1 . . 1 . Unknown Exits Taken 10 | 1 . 1 . 1 1 1 . . 1 1 . . 1 1 1 . . . . . Scrap Searched 16 | . . . . 1 . 1 . . 1 3 3 . 2 3 . 1 . . . 1 Spaces Dug 103 | . . . 8 . . . . . . . 42 9 . 29 . 3 1 . 11 . Terrain Destroyed 728 | . . . 62 . . 1 2 6 67 . 131 10 33 152 . 56 24 2 153 29 Melee 1 | . . . 1 . . . . . . . . . . . . . . . . . Projectile 134 | . . . 1 . . 1 2 . . . . 10 5 . . 11 24 2 49 29 AOE 593 | . . . 60 . . . . 6 67 . 131 . 28 152 . 45 . . 104 . Terrain Rammed 1 | . . . . . . . . . . 1 . . . . . . . . . . Walls Destroyed . | . . . . . . . . . . . . . . . . . . . . . Machines Disabled . | . . . . . . . . . . . . . . . . . . . . . Actions | -11 -10 -10 -9 -9 -9 -8 -8 -7 -7 -6 -5 -5 -5 -5 -5 -4 -4 -4 -4 -4 --------- Run | Scr Mat Min Mat Min Exi Min Mat Fac Low Zio Pro Fac Upp Upp War Pro Fac Was Fac Upp Total 13228 | 33 831 67 1105 610 265 295 731 1005 212 1236 451 1575 888 526 1105 260 490 71 1179 293 Wait 1284 | 4 9 . 99 152 17 76 156 122 48 . 46 91 42 155 23 2 3 3 221 15 Move 10209 | 14 664 66 811 426 236 184 422 737 141 1220 355 1233 758 337 973 226 396 59 769 182 Hop . | . . . . . . . . . . . . . . . . . . . . . Pick Up 210 | 1 29 . 21 5 3 6 14 20 1 4 6 24 23 5 14 2 6 . 18 8 Fast Attach 136 | . 4 . 13 3 3 2 6 9 1 . 5 25 9 5 13 3 11 1 17 6 Attach 89 | 2 5 . 7 1 1 1 5 9 1 . 6 13 11 5 4 . 2 1 6 9 Detach 22 | . . . . . . . . 3 1 . 1 4 4 4 3 . . . 1 1 Swap 180 | 1 5 . 19 3 . 5 22 22 2 5 8 37 . 5 8 5 8 . 24 1 Drop 267 | 3 20 . 23 6 5 8 28 29 . 6 6 37 9 6 26 5 14 . 32 4 Fire 725 | 8 95 1 108 14 . 11 77 51 17 . 18 98 24 4 4 17 50 7 88 33 Melee 6 | . . . 3 . . . . . . . . . 3 . . . . . . . Ram 2 | . . . . . . . . . . 1 . . 1 . . . . . . . Kick 35 | . . . . . . 2 1 3 . . . 13 4 . . . . . 3 9 Crush 1 | . . . 1 . . . . . . . . . . . . . . . . . Escape Stasis . | . . . . . . . . . . . . . . . . . . . . . Rewire 62 | . . . . . . . . . . . . . . . 37 . . . . 25 Trap . | . . . . . . . . . . . . . . . . . . . . . Miscellaneous . | . . . . . . . . . . . . . . . . . . . . . Route ------- -11/Scrapyard -10/Materials (discovered 3 exits: *Mat x2 / *Min) -10/Mines -9/Materials (discovered 4 exits: *Mat x2 / *Min / *Sto) -9/Mines (discovered 3 exits: *Mat x2 / *Exi) -9/Exiles (discovered 2 exits: [*Min x2]) -8/Mines -8/Materials -7/Factory -7/Lower Caves -6/Zion -5/Proximity Caves -5/Factory (discovered 2 exits: *Upp x2) -5/Upper Caves -5/Upper Caves (discovered 2 exits: *Fac / *War) -5/Warlord -4/Proximity Caves -4/Factory -4/Waste -4/Factory (discovered 2 exits: *Upp / *Ext) -4/Upper Caves History --------- Turn | Location | Event 31 | -11/Scrapyard | Discovered new exit (range 3) 48 | -11/Scrapyard | Entered Materials 319 | -10/Materials | Build established: Mutant 426 | -10/Materials | Discovered new exit (range 15) 558 | -10/Materials | Core integrity fell below 50% 904 | -10/Materials | Identified exit to Mines 947 | -10/Materials | Discovered new exit (range 16) 1097 | -10/Materials | Entered Mines 1169 | -10/Mines | Discovered new exit (range 5) 1176 | -10/Mines | Entered Materials 1176 | -9/Materials | Evolved 2 slots: Propulsion x1, Utility x1 1319 | -9/Materials | Discovered new exit (range 4) 1466 | -9/Materials | Repaired Lgt. Cannon 1493 | -9/Materials | Repaired Lgt. Armor Plating 1911 | -9/Materials | Discovered new exit (range 8) 2271 | -9/Materials | Discovered new exit (range 8) 2376 | -9/Materials | First assault squad dispatched 2474 | -9/Materials | Lost 3 parts (1n2u) 2507 | -9/Materials | Identified exit to Mines 2507 | -9/Materials | Identified exit to Storage 2673 | -9/Materials | Entered Mines 2674 | -9/Mines | Assembled infested the area 3193 | -9/Mines | Destroyed YI-UF0 3209 | -9/Mines | Discovered new exit (range 14) 3296 | -9/Mines | Discovered new exit (range 5) 3328 | -9/Mines | Assisted by bots powering up and referring to "LRC-V3" 3419 | -9/Mines | Deemed a non-threat by the Exiles lab entrance 3421 | -9/Mines | Discovered new exit (range 5) 3432 | -9/Mines | Entered Exiles 3432 | -9/Exiles | Accompanied by 3 allies 3448 | -9/Exiles | Discovered new exit (range 15) 3462 | -9/Exiles | Met 8R-AWN 3483 | -9/Exiles | Met EX-HEX 3514 | -9/Exiles | Met EX-BIN 3520 | -9/Exiles | Build established: Scavenger-Mutant 3528 | -9/Exiles | Aligned with FarCom system 3530 | -9/Exiles | Given EX-Vault access code 3568 | -9/Exiles | Opened EX-Vault 3577 | -9/Exiles | Found Potential Leg 3581 | -9/Exiles | Found Potential Leg 3588 | -9/Exiles | Found Latent Energy Streamer 3592 | -9/Exiles | Found Skeleton Box 3613 | -9/Exiles | Warned to stay clear of 0b10 Research branches 3637 | -9/Exiles | Met EX-DEC 3685 | -9/Exiles | Discovered new exit (range 10) 3710 | -9/Exiles | Stole three prototypes: Potential Leg, Skeleton Box, Latent Energy Streamer 3710 | -9/Exiles | Entered Mines 3710 | -8/Mines | Accompanied by 3 allies 4067 | -8/Mines | Discovered new exit (range 6) 4074 | -8/Mines | Entered Materials 4074 | -8/Materials | Evolved 2 slots: Propulsion x1, Utility x1 4600 | -8/Materials | Repaired Hvy. Armor Plating 4923 | -8/Materials | Discovered new exit (range 15) 4950 | -8/Materials | Identified exit to Factory 5034 | -8/Materials | Entered Factory 5034 | -7/Factory | Evolved 2 slots: Propulsion x1, Utility x1 5036 | -7/Factory | FarCom data flow suspended 5057 | -7/Factory | Build established: Mutant 5290 | -7/Factory | Repaired Reflective Plating 5559 | -7/Factory | Fabricated Adv. Hardlight Generator (x2) 5703 | -7/Factory | Found Prototype Launcher 5704 | -7/Factory | Identified Rocket Array 5707 | -7/Factory | Found Rocket Array 5928 | -7/Factory | Cargo convoy interrupted 6054 | -7/Factory | Build established: Scavenger-Mutant 6146 | -7/Factory | Repaired Hvy. Armor Plating? 6234 | -7/Factory | First assault squad dispatched 6244 | -7/Factory | Discovered new exit (range 5) 6251 | -7/Factory | Identified exit to Lower Caves 6289 | -7/Factory | Entered Lower Caves 6538 | -7/Lower Caves | A Derelict revealed a hidden shortcut to a safe place 6621 | -7/Lower Caves | Entered Zion 6675 | -6/Zion | System corruption cleaned by Quarantine Array 6755 | -6/Zion | Given A8's code to call for help 6937 | -6/Zion | Discovered new exit (range 16) 7173 | -6/Zion | Learned location of 1 exit from Factory 7322 | -6/Zion | Learned 4 Factory zone layouts 7555 | -6/Zion | Build established: Mutant 7558 | -6/Zion | System corruption cleaned by Quarantine Array 8094 | -6/Zion | Found GAL Module 8460 | -6/Zion | Entered Proximity Caves 8660 | -5/Proximity Caves | Learned Factory terminal intel 8842 | -5/Proximity Caves | Attracted the attention of an 0b10 outpost 8887 | -5/Proximity Caves | Lost 4 parts (1p2u1w) 8925 | -5/Proximity Caves | Crushed by falling debris 8925 | -5/Proximity Caves | System corruption reached 10% 8956 | -5/Proximity Caves | Lost 6 parts (1p4n1u) 8963 | -5/Proximity Caves | Identified exit to Factory 8982 | -5/Proximity Caves | Entered Factory 8982 | -5/Factory | Evolved 4 slots: Utility x3, Weapon x1 8983 | -5/Factory | Identified exit to Upper Caves 8985 | -5/Factory | Loaded intel: 19 terminal locations 9382 | -5/Factory | Build established: Scavenger-Tank 10603 | -5/Factory | Found Prototype Launcher 10603 | -5/Factory | Identified Scatter Rocket Array 10886 | -5/Factory | Cargo convoy interrupted 10904 | -5/Factory | Entered Upper Caves 10904 | -5/Upper Caves | Spotted A5-Q27(f) 10904 | -5/Upper Caves | Spotted 2J-NMC(f) 10905 | -5/Upper Caves | Encountered a Master Thief 10905 | -5/Upper Caves | Encountered a Master Thief 10905 | -5/Upper Caves | Core integrity fell below 50% 10906 | -5/Upper Caves | Spotted AK-6RM(f) 10907 | -5/Upper Caves | Encountered a Master Thief 10908 | -5/Upper Caves | Imp. Focal Shield stolen by Master Thief 10940 | -5/Upper Caves | Lost 11 parts (1p4n5u1w) 10958 | -5/Upper Caves | Matter Filter stolen by Master Thief 11088 | -5/Upper Caves | Core integrity fell below 20% 11162 | -5/Upper Caves | Build established: Mutant 11371 | -5/Upper Caves | System corruption reached 10% 11439 | -5/Upper Caves | Lost 4 parts (1p2u1w) 11569 | -5/Upper Caves | Discovered new exit (range 16) 11581 | -5/Upper Caves | Acquired the password to a Derelict Tinkerer's latest research 11592 | -5/Upper Caves | Found Prototype Special Weapon 11592 | -5/Upper Caves | Identified Molecular Deconstructor 11645 | -5/Upper Caves | Caught by Unaware searching for contraband prototypes 11645 | -5/Upper Caves | Caught by Unaware searching for contraband prototypes 11645 | -5/Upper Caves | Entered another Upper Caves area 11654 | -5/Upper Caves | Discovered new exit (range 10) 11677 | -5/Upper Caves | Destroyed 10 combat bots 12100 | -5/Upper Caves | Spotted LY-X6C(f) 12100 | -5/Upper Caves | Spotted BM-2WP(f) 12101 | -5/Upper Caves | Spotted TP-SO3(f) 12101 | -5/Upper Caves | Spotted YS-37W(f) 12102 | -5/Upper Caves | Encountered a Master Thief 12102 | -5/Upper Caves | Encountered a Master Thief 12102 | -5/Upper Caves | Encountered a Master Thief 12102 | -5/Upper Caves | Encountered a Master Thief 12107 | -5/Upper Caves | Latent Energy Streamer stolen by Master Thief 12108 | -5/Upper Caves | Hvy. Phase Cannon stolen by Master Thief 12109 | -5/Upper Caves | Nanoactuators stolen by Master Thief 12117 | -5/Upper Caves | Fire Trap stolen by Master Thief 12144 | -5/Upper Caves | Discovered new exit (range 8) 12153 | -5/Upper Caves | Entered Warlord 12191 | -5/Warlord | System corruption cleaned by Quarantine Array 12646 | -5/Warlord | Warlord's base attacked by MAIN.C 12681 | -5/Warlord | Learned Quarantine stockpile data 12681 | -5/Warlord | Learned 4 Testing zone layouts 12681 | -5/Warlord | Learned 4 Command zone layouts 12682 | -5/Warlord | Learned Testing security intel 12834 | -5/Warlord | Met Warlord 12874 | -5/Warlord | Found Prototype Device 12874 | -5/Warlord | Identified Exp. Cloaking Device 12882 | -5/Warlord | Found Prototype Reactor 12888 | -5/Warlord | Found Prototype Processor 12888 | -5/Warlord | Identified Exp. Core Analyzer 12989 | -5/Warlord | Found Prototype Energy Gun 12989 | -5/Warlord | Identified Vortex Rifle 12993 | -5/Warlord | Found Prototype Energy Cannon 12993 | -5/Warlord | Identified Vortex Driver 12996 | -5/Warlord | Warlord forces counterattacked 12999 | -5/Warlord | Found Prototype Energy Gun 12999 | -5/Warlord | Identified Vortex Rail 13003 | -5/Warlord | Found Vortex Rail 13008 | -5/Warlord | Found Vortex Rifle 13027 | -5/Warlord | Found Vortex Driver 13150 | -5/Warlord | Found Prototype Ballistic Cannon 13150 | -5/Warlord | Identified Hvy. Autocannon 13175 | -5/Warlord | Discovered new exit (range 14) 13203 | -5/Warlord | Entered Proximity Caves 13203 | -4/Proximity Caves | Accompanied by 3 allies 13401 | -4/Proximity Caves | Identified exit to Factory 13515 | -4/Proximity Caves | Entered Factory 13515 | -4/Factory | Accompanied by 1 ally 13515 | -4/Factory | Evolved 2 slots: Utility x1, Weapon x1 13556 | -4/Factory | Found Quantum Capacitor 13630 | -4/Factory | Build established: Scavenger-Tank 13658 | -4/Factory | Spotted B-86 Titan 13675 | -4/Factory | Destroyed B-86 Titan 14288 | -4/Factory | Found Prototype Device 14288 | -4/Factory | Identified EM Disruption Field 14336 | -4/Factory | Sucked down chute 14336 | -4/Factory | Entered Waste 14337 | -4/Waste | Met a frightened Derelict 14351 | -4/Waste | EMP discharged 14359 | -4/Waste | Spotted C-40 Crusher 14381 | -4/Waste | Spotted C-40 Crusher 14383 | -4/Waste | Spotted C-40 Crusher 14383 | -4/Waste | Spotted C-40 Crusher 14388 | -4/Waste | Spotted C-40 Crusher 14394 | -4/Waste | Crushed by Compactor (1 part destroyed, 1 dropped) 14394 | -4/Waste | Spotted C-40 Crusher 14396 | -4/Waste | Crushed by Compactor (1 part destroyed, 1 dropped) 14397 | -4/Waste | Crushed by Compactor (1 part destroyed, 2 dropped) 14406 | -4/Waste | Discovered new exit (range 16) 14415 | -4/Waste | Found Prototype Device 14415 | -4/Waste | Identified Exp. Weapon Cycler 14421 | -4/Waste | Entered Factory 14428 | -4/Factory | Lost 3 parts (1n1u1w) 14755 | -4/Factory | Found Prototype Processor 14755 | -4/Factory | Identified Exp. Melee Analysis Suite 14756 | -4/Factory | System corruption reached 10% 15103 | -4/Factory | Discovered new exit (range 6) 15107 | -4/Factory | Identified exit to Extension 15268 | -4/Factory | Repaired Imp. Weapon Cycler 15628 | -4/Factory | Build established: Scavenger-Mutant 15671 | -4/Factory | First assault squad dispatched 15809 | -4/Factory | Discovered new exit (range 12) 15823 | -4/Factory | Identified exit to Upper Caves 15879 | -4/Factory | Fabricated Adv. Particle Charger? 15891 | -4/Factory | Entered Upper Caves 15891 | -4/Upper Caves | Spotted 55-E0E(f) 15891 | -4/Upper Caves | Spotted V0-THK(f) 15891 | -4/Upper Caves | Spotted KE-X1G(f) 15892 | -4/Upper Caves | Encountered a Master Thief 15892 | -4/Upper Caves | Encountered a Master Thief 15892 | -4/Upper Caves | Encountered a Master Thief 15896 | -4/Upper Caves | Prototype Reactor stolen by Master Thief 15896 | -4/Upper Caves | Vortex Driver stolen by Master Thief 15913 | -4/Upper Caves | Vortex Driver stolen by Master Thief 15943 | -4/Upper Caves | Destroyed V0-THK(f) 16051 | -4/Upper Caves | Attracted the attention of an 0b10 outpost 16068 | -4/Upper Caves | Core integrity fell below 50% 16122 | -4/Upper Caves | Lost 11 parts (4n3u4w) 16266 | -4/Upper Caves | Released all parts (11) 16272 | -4/Upper Caves | Core integrity fell below 20% 16277 | -4/Upper Caves | Destroyed by G-67 Veteran with Plasma Rifle Last Messages --------------- 16262_ Hardcell Cannon destroyed. 16264_ Flexi-carbon Leg destroyed. 16266_ Released Imp. Core Shielding. 16266_ Released Myomer Leg. 16266_ Released Imp. Armor Integrity Analyzer. 16266_ Released Adv. Cooling System. 16266_ Released Lrg. Storage Unit. 16266_ Released Adv. Heat Sink. 16266_ Released Adv. Signal Interpreter. 16266_ Released Hvy. Mace. 16266_ Released Imp. Medium Armor Plating. 16266_ Released Fission Core. 16267_ Dropped Point Defense System. 16267_ Acquired GAL Module. 16268_ Critical hit (Burn: +37). 16268_ Dropped Imp. Transmission Jammer. 16269_ Dropped Adv. Thermal Shield. 16270_ Acquired Adv. Cooling System. 16270_ Adv. Cooling System destroyed. 16273_ Acquired Myomer Leg. Map ----- +----------------------------------------------------+ | ??????????????# ## + # | | ??????????????## ### # # ### # | | ???????????????# ## ##?## #" """# #?# | | ???????????????# ## ##???# ##"##### ?# | | ???????????????# ## ###????# ?? # # | | ???????????????# ##=[#??????### # | | ???????????????# ## %#????????## ## | | ???????????????# ##/%#?????????### ## ### | | ???????????????# !!#???????????## ## #?# ??? | | ??????????????## ##???###?????## ?## #?###?? | | ??????????????# #### ##?????# #??##?????? | | ??????????????# #????? ??????????? | | ??????????????# ##???? ??????????? | | ??????????????## #???# ??????????? | | ???????????????# ##???? ??????????? | | ???????????????# ##?????????????????? | | ???????????????# gg g #####?????????????? | | ???????????????# g % ### ##????????????? | | ???????????????# ### ##???????????? | | ???????????????# ##??????????? | | ???????????????# ??????????? | | ???????????????# ???????????? | | ???????????????# ?????????????? | | ???????????????## % ###??????????????? | | ????????????????#; * ##????????????????? | | ????????????????###! ! @ #?????????????????? | | ?????????????????## ! ! ## #????????????????? | | ????????????????##!!!!## ##?## #???????????????? | | ??????????????### !/ ####????? #???????????????? | | ??????????????# #????????? ????????????????? | | ??????????????# #?????????????????????????? | | ??????????????## ## #????????????????????????? | | ???????????????##### #????????????????????????? | | ???????????????????## #????????????????????????? | | ????????????????????#####????????????????????????? | | ?????????????????????????????????????????????????? | | ?????????????????????????????????????????????????? | | ?????????????????????????????????????????????????? | | ?????????????????????????????????????????????????? | | ?????????????????????????????????????????????????? | | ?????????????????????????????????????????????????? | | ?????????????????????????????????????????????????? | | ?????????????????????????????????????????????????? | | ?????????????????????????????????????????????????? | | ?????????????????????????????????????????????????? | | ?????????????????????????????????????????????????? | | ?????????????????????????????????????????????????? | | ?????????????????????????????????????????????????? | | ?????????????????????????????????????????????????? | | ?????????????????????????????????????????????????? | +----------------------------------------------------+ Best States ------------- Heat Dissipation 112 Coolant Potential 100 Energy Generation 19 Energy Capacity 500 Matter Stores 300 Matter Capacity 600 Sight Range 16 Robot Scan Range 18 Terrain Scan Density 10 Jamming Range 14 Additional Mass Support 9 Armor Coverage 1050 Resistance: KI 25 Resistance: TH 25 Resistance: EX 50 Resistance: EM 50 Core Shielding 30 Propulsion Shielding 66 Weapon Shielding 90 Weapon Cycling 20 Melee Speed Boost 30 Evasion (%) 66 Target Analysis 6 Core Analysis 15 Armor Integrity Analysis 30 Recoil Reduction 3 Matter Filtering 30 Salvage Targeting 4 Offensive Hacking 20 Defensive Hacking 33 Item Schematics ----------------- Hacking Suite | -7/Factory | Scanalyzed Hvy. Armor Plating | -7/Factory | Scanalyzed Hvy. Beamcaster | -6/Zion | Free Riot Gun | -6/Zion | Free Arc Thrower | -6/Zion | Free Adv. Particle Charger | -5/Factory | Hacked Robot Schematics ------------------ None Fabricated ------------ Adv. Hardlight Generator | x2 | -7/Factory | Preloaded Adv. Particle Charger | x2 | -4/Factory Alien Tech Used ----------------- None Achievements -------------- None Challenges ------------ None Game ------ Seed AlloyHypercooledDerivative Manual? 0 Play Time 03:46:39 Cumulative 229.9 hours Start 2021.07.08 @ 15:41:29 End 2021.07.08 @ 19:54:42 Sessions 1 Manual Loads 0 Difficulty Rogue Special Mode None Game No. 131 Rogue 131 Adventurer 0 Explorer 0 Win Type - Total 3 Types 2/0/0/1/0/0/0/0/0 Lore% 65 Gallery% 76 Achievement% 52 Wizard Run 0 Options --------- ASCII 0 Keyboard 0 Movement Numpad Keybinds 0 Fullscreen 1 Font 18/SmallcapsGlow Map View 76x50 Tactical HUD 1 Map Filters NONE Filters NONE Steam 1 RUN: 26bd7220-3269-487d-8805-5353cceb6d68